[Event "*** Titled Tuesday Blitz"]
[Site "Chess.com"]
[Date "2020.04.21"]
[Round "2"]
[White "adricalderon8"]
[Black "Tapuah"]
[Result "0-1"]
[WhiteElo "2418"]
[BlackElo "2847"]
[TimeControl "180+1"]
[EndTime "10:17:41 PDT"]
[Termination "Tapuah won by resignation"]

1. e3 {[%clk 0:02:17.1]} 1... Nf6 {[%clk 0:02:58.3]} 2. d4 {[%clk 0:02:16.8]}
2... g6 {[%clk 0:02:56.7]} 3. Nf3 {[%clk 0:02:17.1]} 3... Bg7 {[%clk 0:02:57.2]}
4. b3 {[%clk 0:02:17.4]} 4... O-O {[%clk 0:02:56.9]} 5. Bb2 {[%clk 0:02:18]}
5... d6 {[%clk 0:02:57.3]} 6. Nbd2 {[%clk 0:02:18.5]} 6... c5 {[%clk 0:02:50.8]}
7. Be2 {[%clk 0:02:18.2]} 7... Nc6 {[%clk 0:02:50.3]} 8. O-O {[%clk 0:02:18.4]}
8... Re8 {[%clk 0:02:43.5]} 9. Re1 {[%clk 0:02:18]} 9... cxd4 {[%clk 0:02:40.5]}
10. exd4 {[%clk 0:02:17.8]} 10... d5 {[%clk 0:02:37.5]} 11. Bf1 {[%clk
0:02:17.5]} 11... Bf5 {[%clk 0:02:35.1]} 12. c3 {[%clk 0:02:16.1]} 12... Qc7
{[%clk 0:02:30.2]} 13. Rc1 {[%clk 0:02:09.8]} 13... Rad8 {[%clk 0:02:27.2]} 14.
h3 {[%clk 0:02:04.6]} 14... Bh6 {[%clk 0:02:25]} 15. g4 {[%clk 0:01:51.9]} 15...
Nxg4 {[%clk 0:02:18.2]} 16. hxg4 {[%clk 0:01:49.7]} 16... Bxg4 {[%clk
0:02:18.3]} 17. Bg2 {[%clk 0:01:41.8]} 17... e5 {[%clk 0:02:08.8]} 18. Nf1
{[%clk 0:01:31.6]} 18... e4 {[%clk 0:02:05.6]} 19. Rc2 {[%clk 0:01:15.6]} 19...
exf3 {[%clk 0:01:59.3]} 20. Rxe8+ {[%clk 0:01:15.6]} 20... Rxe8 {[%clk
0:01:59.3]} 21. Bxf3 {[%clk 0:01:16.5]} 21... Bxf3 {[%clk 0:01:41.5]} 22. Qxf3
{[%clk 0:01:16]} 22... Re4 {[%clk 0:01:37.7]} 23. Ng3 {[%clk 0:01:13.1]} 23...
Re1+ {[%clk 0:01:37.4]} 24. Kg2 {[%clk 0:01:13.6]} 24... Qd7 {[%clk 0:01:36.9]}
25. Ba3 {[%clk 0:01:07.9]} 25... f5 {[%clk 0:01:32.1]} 26. Re2 {[%clk
0:01:07.7]} 26... Rxe2 {[%clk 0:01:29]} 27. Nxe2 {[%clk 0:01:07.7]} 27... Qe6
{[%clk 0:01:27.1]} 28. Nf4 {[%clk 0:01:05.8]} 28... Bxf4 {[%clk 0:01:25.7]} 29.
Qxf4 {[%clk 0:01:06.3]} 29... Qe4+ {[%clk 0:01:25.5]} 30. Qxe4 {[%clk 0:01:05]}
30... fxe4 {[%clk 0:01:24]} 31. Kg3 {[%clk 0:01:04.2]} 31... Kf7 {[%clk
0:01:22.7]} 32. Bd6 {[%clk 0:00:57.7]} 32... Ke6 {[%clk 0:01:22]} 33. Bc7 {[%clk
0:00:56.8]} 33... Kf5 {[%clk 0:01:21]} 34. a4 {[%clk 0:00:52]} 34... g5 {[%clk
0:01:14]} 35. Kg2 {[%clk 0:00:51.6]} 35... h5 {[%clk 0:01:12.4]} 36. Bd6 {[%clk
0:00:50.9]} 36... Kg4 {[%clk 0:01:10]} 37. Bc7 {[%clk 0:00:50]} 37... h4 {[%clk
0:01:08.9]} 38. Bd6 {[%clk 0:00:49.6]} 38... h3+ {[%clk 0:01:05]} 39. Kf1 {[%clk
0:00:49.7]} 39... Kf3 {[%clk 0:01:04.4]} 40. Bc7 {[%clk 0:00:49.6]} 40... Ne7
{[%clk 0:01:00.4]} 41. c4 {[%clk 0:00:48.6]} 41... e3 {[%clk 0:00:44.8]} 42.
fxe3 {[%clk 0:00:43.8]} 42... g4 {[%clk 0:00:42]} 43. c5 {[%clk 0:00:28.8]}
43... g3 {[%clk 0:00:41.1]} 44. Kg1 {[%clk 0:00:29.2]} 44... Nf5 {[%clk
0:00:37.1]} 45. b4 {[%clk 0:00:20.4]} 45... h2+ {[%clk 0:00:34.4]} 46. Kh1
{[%clk 0:00:19.9]} 46... Kf2 {[%clk 0:00:34.7]} 0-1

[Event "*** Titled Tuesday Blitz"]
[Site "Chess.com"]
[Date "2020.04.21"]
[Round "2"]
[White "Tashik"]
[Black "mirochka"]
[Result "1-0"]
[WhiteElo "2549"]
[BlackElo "2167"]
[TimeControl "180+1"]
[EndTime "10:17:41 PDT"]
[Termination "Tashik won on time"]

1. c4 {[%clk 0:03:00.9]} 1... Nf6 {[%clk 0:02:59]} 2. Nc3 {[%clk 0:03:00.9]}
2... e6 {[%clk 0:02:58.5]} 3. e4 {[%clk 0:03:01.4]} 3... c5 {[%clk 0:02:48.2]}
4. e5 {[%clk 0:02:58.2]} 4... Ng8 {[%clk 0:02:47.4]} 5. Nf3 {[%clk 0:02:58.8]}
5... Nc6 {[%clk 0:02:47.3]} 6. d4 {[%clk 0:02:58.9]} 6... cxd4 {[%clk
0:02:47.3]} 7. Nxd4 {[%clk 0:02:59.8]} 7... Nxe5 {[%clk 0:02:47.6]} 8. Ndb5
{[%clk 0:02:32.7]} 8... f6 {[%clk 0:02:45.8]} 9. Be3 {[%clk 0:02:22.7]} 9... Bb4
{[%clk 0:02:36.4]} 10. a3 {[%clk 0:01:57.1]} 10... Bxc3+ {[%clk 0:02:35.8]} 11.
bxc3 {[%clk 0:01:57.7]} 11... b6 {[%clk 0:02:03.4]} 12. Qd6 {[%clk 0:01:52.8]}
12... Kf7 {[%clk 0:01:46]} 13. Nc7 {[%clk 0:01:42.1]} 13... Rb8 {[%clk
0:01:44.2]} 14. Nxe6 {[%clk 0:01:40.9]} 14... Qe8 {[%clk 0:01:37.4]} 15. Nxg7
{[%clk 0:01:25]} 15... Kxg7 {[%clk 0:01:33.9]} 16. Qxb8 {[%clk 0:01:25.5]} 16...
Ne7 {[%clk 0:01:25.3]} 17. Be2 {[%clk 0:01:20.1]} 17... Nf5 {[%clk 0:01:17.3]}
18. O-O {[%clk 0:01:16.3]} 18... Nxe3 {[%clk 0:01:10.7]} 19. fxe3 {[%clk
0:01:17.2]} 19... Qg6 {[%clk 0:01:01.4]} 20. Bf3 {[%clk 0:00:55.2]} 20... Ba6
{[%clk 0:00:48.1]} 21. Qd6 {[%clk 0:00:49.1]} 21... Bxc4 {[%clk 0:00:42.9]} 22.
Qe7+ {[%clk 0:00:45.9]} 22... Bf7 {[%clk 0:00:22.3]} 23. Bd5 {[%clk 0:00:33.8]}
23... Rc8 {[%clk 0:00:19.1]} 24. Bxf7 {[%clk 0:00:30.6]} 24... Qxf7 {[%clk
0:00:19.6]} 25. Qxf7+ {[%clk 0:00:27.5]} 25... Kxf7 {[%clk 0:00:20.1]} 26. Rac1
{[%clk 0:00:27.5]} 26... Ke6 {[%clk 0:00:19.8]} 27. Rfd1 {[%clk 0:00:21.1]}
27... Rc4 {[%clk 0:00:19.8]} 28. Rd4 {[%clk 0:00:20.4]} 28... Rc5 {[%clk
0:00:18.8]} 29. Kf2 {[%clk 0:00:19.5]} 29... d5 {[%clk 0:00:17.9]} 30. Rc2
{[%clk 0:00:15.9]} 30... Ra5 {[%clk 0:00:11.3]} 31. a4 {[%clk 0:00:15.3]} 31...
Rc5 {[%clk 0:00:10.3]} 32. Rh4 {[%clk 0:00:14.7]} 32... h6 {[%clk 0:00:08.8]}
33. h3 {[%clk 0:00:13.9]} 33... Nd3+ {[%clk 0:00:02.3]} 34. Ke2 {[%clk
0:00:13.1]} 34... Nb4 {[%clk 0:00:02.2]} 35. Rxb4 {[%clk 0:00:12.4]} 1-0

[Event "*** Titled Tuesday Blitz"]
[Site "Chess.com"]
[Date "2020.04.21"]
[Round "2"]
[White "Blagorod"]
[Black "serhanberat_ozdemir"]
[Result "0-1"]
[WhiteElo "2124"]
[BlackElo "2409"]
[TimeControl "180+1"]
[EndTime "10:17:41 PDT"]
[Termination "serhanberat_ozdemir won by resignation"]

1. e4 {[%clk 0:03:00.9]} 1... c5 {[%clk 0:02:59.6]} 2. Nc3 {[%clk 0:02:58.8]}
2... e6 {[%clk 0:02:59.6]} 3. g3 {[%clk 0:02:59.4]} 3... d5 {[%clk 0:02:59.2]}
4. d3 {[%clk 0:02:56.6]} 4... dxe4 {[%clk 0:02:58.2]} 5. dxe4 {[%clk 0:02:50.7]}
5... Qxd1+ {[%clk 0:02:59.1]} 6. Nxd1 {[%clk 0:02:50.6]} 6... Nc6 {[%clk
0:02:57.7]} 7. c3 {[%clk 0:02:49.1]} 7... b6 {[%clk 0:02:56.2]} 8. Bg2 {[%clk
0:02:48.5]} 8... Bb7 {[%clk 0:02:48.8]} 9. e5 {[%clk 0:02:27.4]} 9... Nge7
{[%clk 0:02:36.3]} 10. Ne2 {[%clk 0:02:18.4]} 10... h5 {[%clk 0:02:26.9]} 11. h3
{[%clk 0:02:15.8]} 11... O-O-O {[%clk 0:02:16.3]} 12. f4 {[%clk 0:02:14.3]}
12... g5 {[%clk 0:02:11.5]} 13. O-O {[%clk 0:02:06.7]} 13... gxf4 {[%clk
0:01:24]} 14. gxf4 {[%clk 0:01:50.3]} 14... Nf5 {[%clk 0:01:18.9]} 15. Nf2
{[%clk 0:01:37.4]} 15... Be7 {[%clk 0:01:11.9]} 16. Kh2 {[%clk 0:01:34]} 16...
Rhg8 {[%clk 0:01:12]} 17. Ne4 {[%clk 0:01:17]} 17... Na5 {[%clk 0:01:05.6]} 18.
N2g3 {[%clk 0:01:02.2]} 18... Nxg3 {[%clk 0:00:57.1]} 19. Nxg3 {[%clk
0:00:51.9]} 19... Bxg2 {[%clk 0:00:57.3]} 20. Kxg2 {[%clk 0:00:41.3]} 20... h4
{[%clk 0:00:54.1]} 21. b4 {[%clk 0:00:37.7]} 21... Rxg3+ {[%clk 0:00:48.8]} 22.
Kf2 {[%clk 0:00:36.8]} 22... Nc4 {[%clk 0:00:44.6]} 23. a4 {[%clk 0:00:35.2]}
23... cxb4 {[%clk 0:00:26.9]} 24. cxb4 {[%clk 0:00:32]} 24... Bxb4 {[%clk
0:00:23.1]} 25. Ra2 {[%clk 0:00:23.4]} 25... Bc5+ {[%clk 0:00:20]} 26. Ke2
{[%clk 0:00:23.6]} 26... Rg2+ {[%clk 0:00:19.9]} 27. Kf3 {[%clk 0:00:19.8]}
27... Rxa2 {[%clk 0:00:19.3]} 28. Kg4 {[%clk 0:00:18.9]} 28... Rg2+ {[%clk
0:00:18.9]} 29. Kf3 {[%clk 0:00:18.9]} 29... Rg3+ {[%clk 0:00:18.4]} 30. Ke2
{[%clk 0:00:15.8]} 30... Be3 {[%clk 0:00:18.8]} 31. Re1 {[%clk 0:00:11.3]} 31...
Bxc1 {[%clk 0:00:18.2]} 32. Rxc1 {[%clk 0:00:11.4]} 32... Rd2+ {[%clk
0:00:18.8]} 33. Kf1 {[%clk 0:00:11.5]} 33... Rf3+ {[%clk 0:00:19.2]} 34. Kg1
{[%clk 0:00:09.8]} 34... Rg3+ {[%clk 0:00:19]} 35. Kf1 {[%clk 0:00:09.9]} 35...
Rd1+ {[%clk 0:00:18.8]} 36. Rxd1 {[%clk 0:00:09.5]} 36... Ne3+ {[%clk
0:00:19.7]} 37. Kf2 {[%clk 0:00:09.4]} 37... Nxd1+ {[%clk 0:00:20.6]} 38. Ke2
{[%clk 0:00:09.8]} 38... Rxh3 {[%clk 0:00:20.9]} 0-1

[Event "*** Titled Tuesday Blitz"]
[Site "Chess.com"]
[Date "2020.04.21"]
[Round "2"]
[White "MisiekZielony"]
[Black "EfM13"]
[Result "0-1"]
[WhiteElo "2040"]
[BlackElo "2389"]
[TimeControl "180+1"]
[EndTime "10:17:41 PDT"]
[Termination "EfM13 won on time"]

1. c4 {[%clk 0:02:59.5]} 1... d6 {[%clk 0:02:58.7]} 2. Nc3 {[%clk 0:02:59.1]}
2... e5 {[%clk 0:02:57.6]} 3. g3 {[%clk 0:02:58.4]} 3... f5 {[%clk 0:02:55.5]}
4. Bg2 {[%clk 0:02:58.4]} 4... Nf6 {[%clk 0:02:55.5]} 5. d3 {[%clk 0:02:58.4]}
5... g6 {[%clk 0:02:55.5]} 6. e4 {[%clk 0:02:58.2]} 6... Bg7 {[%clk 0:02:54.8]}
7. Nge2 {[%clk 0:02:58.2]} 7... O-O {[%clk 0:02:54.6]} 8. O-O {[%clk 0:02:57.8]}
8... c6 {[%clk 0:02:49.6]} 9. exf5 {[%clk 0:02:50.8]} 9... gxf5 {[%clk
0:02:48.9]} 10. Bg5 {[%clk 0:02:50]} 10... h6 {[%clk 0:02:47.9]} 11. Bh4 {[%clk
0:02:49.2]} 11... Be6 {[%clk 0:02:46.9]} 12. Qd2 {[%clk 0:02:45.8]} 12... Nbd7
{[%clk 0:02:46]} 13. f4 {[%clk 0:02:44.9]} 13... Qb6+ {[%clk 0:02:42.6]} 14. Kh1
{[%clk 0:02:27.2]} 14... Ng4 {[%clk 0:02:18.1]} 15. Bf3 {[%clk 0:01:34.8]} 15...
Qe3 {[%clk 0:01:08.4]} 16. Qxe3 {[%clk 0:01:16.3]} 16... Nxe3 {[%clk 0:01:07.8]}
17. Rf2 {[%clk 0:01:16.5]} 17... Nc5 {[%clk 0:00:54.1]} 18. Nc1 {[%clk
0:01:01.3]} 18... exf4 {[%clk 0:00:30.5]} 19. gxf4 {[%clk 0:01:00.7]} 19... Rfe8
{[%clk 0:00:11.3]} 20. Rd2 {[%clk 0:00:42.1]} 20... a5 {[%clk 0:00:09.1]} 21.
N1e2 {[%clk 0:00:27.8]} 21... Kh8 {[%clk 0:00:07.7]} 22. h3 {[%clk 0:00:15.9]}
22... Rac8 {[%clk 0:00:06.8]} 23. Bf2 {[%clk 0:00:15.6]} 23... Nxc4 {[%clk
0:00:04.2]} 24. dxc4 {[%clk 0:00:12.1]} 24... Bxc4 {[%clk 0:00:04]} 25. Bd4
{[%clk 0:00:01.6]} 25... Bxd4 {[%clk 0:00:02.8]} 26. Nxd4 {[%clk 0:00:01.5]}
26... Ne4 {[%clk 0:00:02.8]} 0-1

[Event "*** Titled Tuesday Blitz"]
[Site "Chess.com"]
[Date "2020.04.21"]
[Round "2"]
[White "alex_zapata"]
[Black "kuba2006"]
[Result "1-0"]
[WhiteElo "2252"]
[BlackElo "2446"]
[TimeControl "180+1"]
[EndTime "10:17:42 PDT"]
[Termination "alex_zapata won by checkmate"]

1. e4 {[%clk 0:03:00.9]} 1... Nf6 {[%clk 0:03:00.9]} 2. e5 {[%clk 0:02:59.8]}
2... Nd5 {[%clk 0:03:01.1]} 3. d4 {[%clk 0:03:00.4]} 3... d6 {[%clk 0:03:01.3]}
4. f4 {[%clk 0:03:00.4]} 4... Nc6 {[%clk 0:02:57.3]} 5. c4 {[%clk 0:02:59.4]}
5... Nb6 {[%clk 0:02:56.8]} 6. d5 {[%clk 0:02:56.1]} 6... Nb8 {[%clk 0:02:33.4]}
7. Nf3 {[%clk 0:02:50.8]} 7... e6 {[%clk 0:02:31.8]} 8. Nc3 {[%clk 0:02:33]}
8... Be7 {[%clk 0:02:31.5]} 9. Be3 {[%clk 0:02:31.9]} 9... Na6 {[%clk
0:02:20.7]} 10. Be2 {[%clk 0:02:26.8]} 10... O-O {[%clk 0:02:19.4]} 11. O-O
{[%clk 0:02:26.8]} 11... dxe5 {[%clk 0:02:13.6]} 12. fxe5 {[%clk 0:02:12.8]}
12... exd5 {[%clk 0:02:04.1]} 13. Nxd5 {[%clk 0:02:07.5]} 13... Bc5 {[%clk
0:01:51.6]} 14. Bxc5 {[%clk 0:02:01.6]} 14... Nxc5 {[%clk 0:01:51.1]} 15. Qc2
{[%clk 0:01:56.2]} 15... Nxd5 {[%clk 0:01:34.4]} 16. cxd5 {[%clk 0:01:56.4]}
16... Qxd5 {[%clk 0:01:33.5]} 17. Rfd1 {[%clk 0:01:48.3]} 17... Qe4 {[%clk
0:01:20.8]} 18. Qxc5 {[%clk 0:01:27]} 18... Qxe2 {[%clk 0:01:20]} 19. Rd2 {[%clk
0:01:25.8]} 19... Qe4 {[%clk 0:01:17]} 20. Qxc7 {[%clk 0:01:11.9]} 20... Bg4
{[%clk 0:01:13.7]} 21. Re1 {[%clk 0:01:05.2]} 21... Qb4 {[%clk 0:01:11.5]} 22.
Rd4 {[%clk 0:00:52.5]} 22... Qxb2 {[%clk 0:00:40.9]} 23. Rxg4 {[%clk 0:00:49.2]}
23... Rac8 {[%clk 0:00:41.4]} 24. Qe7 {[%clk 0:00:35.9]} 24... Rc2 {[%clk
0:00:39.2]} 25. Qf6 {[%clk 0:00:16.9]} 25... g6 {[%clk 0:00:38.6]} 26. Qh4
{[%clk 0:00:11.2]} 26... Qb6+ {[%clk 0:00:32.3]} 27. Kh1 {[%clk 0:00:10.5]}
27... Kh8 {[%clk 0:00:23.1]} 28. Qh6 {[%clk 0:00:10.6]} 28... Rg8 {[%clk
0:00:17.9]} 29. Rh4 {[%clk 0:00:10.7]} 29... Rg7 {[%clk 0:00:17.3]} 30. Ng5
{[%clk 0:00:11.1]} 30... Qf2 {[%clk 0:00:14.8]} 31. Rg1 {[%clk 0:00:11.3]} 31...
Re2 {[%clk 0:00:07.9]} 32. Nxh7 {[%clk 0:00:10.7]} 32... Qxh4 {[%clk 0:00:07.7]}
33. Qxh4 {[%clk 0:00:10.3]} 33... Rxh7 {[%clk 0:00:08]} 34. Qd8+ {[%clk
0:00:10.6]} 34... Kg7 {[%clk 0:00:07.8]} 35. Qf6+ {[%clk 0:00:11.3]} 35... Kg8
{[%clk 0:00:07.3]} 36. Rd1 {[%clk 0:00:12]} 36... Rg7 {[%clk 0:00:05.4]} 37.
Rd8+ {[%clk 0:00:10.9]} 37... Kh7 {[%clk 0:00:05.1]} 38. Qh4# {[%clk 0:00:11.7]}
1-0

[Event "*** Titled Tuesday Blitz"]
[Site "Chess.com"]
[Date "2020.04.21"]
[Round "2"]
[White "Pechen_Yeltsina"]
[Black "Megagigahiper3345"]
[Result "0-1"]
[WhiteElo "2791"]
[BlackElo "2573"]
[TimeControl "180+1"]
[EndTime "10:17:43 PDT"]
[Termination "Megagigahiper3345 won by checkmate"]

1. e4 {[%clk 0:03:00.9]} 1... c5 {[%clk 0:02:36.6]} 2. Nf3 {[%clk 0:03:00.6]}
2... d6 {[%clk 0:02:24.2]} 3. g3 {[%clk 0:03:00.9]} 3... g6 {[%clk 0:02:23.6]}
4. Bg2 {[%clk 0:03:00.9]} 4... Bg7 {[%clk 0:02:23]} 5. O-O {[%clk 0:03:01.3]}
5... Nc6 {[%clk 0:02:21.7]} 6. d3 {[%clk 0:03:00.1]} 6... Nf6 {[%clk 0:02:20.8]}
7. Nbd2 {[%clk 0:03:00.5]} 7... O-O {[%clk 0:02:21.3]} 8. a4 {[%clk 0:03:01.1]}
8... a6 {[%clk 0:02:20]} 9. Nc4 {[%clk 0:03:00.9]} 9... Rb8 {[%clk 0:02:18.9]}
10. e5 {[%clk 0:03:01.3]} 10... dxe5 {[%clk 0:02:14.4]} 11. Nfxe5 {[%clk
0:03:02.2]} 11... Nxe5 {[%clk 0:02:12.7]} 12. Nxe5 {[%clk 0:03:03.1]} 12... Nd7
{[%clk 0:02:10.7]} 13. Nc4 {[%clk 0:02:58.8]} 13... b6 {[%clk 0:02:01.6]} 14.
Bf4 {[%clk 0:02:56.2]} 14... e5 {[%clk 0:01:50.5]} 15. Bd2 {[%clk 0:02:56.7]}
15... Qc7 {[%clk 0:01:49.6]} 16. Re1 {[%clk 0:02:54.5]} 16... Bb7 {[%clk
0:01:44.2]} 17. Qe2 {[%clk 0:02:53.1]} 17... Bxg2 {[%clk 0:01:39.2]} 18. Kxg2
{[%clk 0:02:54]} 18... Rbe8 {[%clk 0:01:34.1]} 19. Qf3 {[%clk 0:02:49.2]} 19...
h6 {[%clk 0:01:31.1]} 20. Qd5 {[%clk 0:02:46]} 20... Nf6 {[%clk 0:01:30.7]} 21.
Qd6 {[%clk 0:02:45.4]} 21... Qxd6 {[%clk 0:01:27.9]} 22. Nxd6 {[%clk 0:02:46.3]}
22... Re6 {[%clk 0:01:28.2]} 23. Nc4 {[%clk 0:02:46.8]} 23... Nd5 {[%clk
0:01:26.8]} 24. f4 {[%clk 0:02:36.2]} 24... exf4 {[%clk 0:01:23.1]} 25. gxf4
{[%clk 0:02:37.1]} 25... b5 {[%clk 0:01:18.5]} 26. axb5 {[%clk 0:02:30.6]} 26...
axb5 {[%clk 0:01:19.4]} 27. Ne5 {[%clk 0:02:31.1]} 27... Bxe5 {[%clk 0:01:17.6]}
28. Rxe5 {[%clk 0:02:31.6]} 28... Rxe5 {[%clk 0:01:12.9]} 29. fxe5 {[%clk
0:02:32.5]} 29... Kg7 {[%clk 0:01:07.9]} 30. c4 {[%clk 0:02:32.8]} 30... bxc4
{[%clk 0:01:07.2]} 31. dxc4 {[%clk 0:02:33.7]} 31... Nb6 {[%clk 0:01:04.8]} 32.
b3 {[%clk 0:02:14.8]} 32... Rd8 {[%clk 0:01:03.4]} 33. Bc3 {[%clk 0:02:12.1]}
33... Rd3 {[%clk 0:01:02.3]} 34. Rc1 {[%clk 0:02:12.6]} 34... Kf8 {[%clk
0:00:52.4]} 35. Rc2 {[%clk 0:02:11.6]} 35... Ke7 {[%clk 0:00:49.2]} 36. Kf2
{[%clk 0:02:12]} 36... Ke6 {[%clk 0:00:48.4]} 37. Ke2 {[%clk 0:02:12.4]} 37...
Rh3 {[%clk 0:00:48.5]} 38. Kd1 {[%clk 0:02:12.9]} 38... Nd7 {[%clk 0:00:47.3]}
39. Kc1 {[%clk 0:02:03.7]} 39... Nxe5 {[%clk 0:00:46.1]} 40. Kb2 {[%clk
0:02:03.4]} 40... Nd3+ {[%clk 0:00:44.5]} 41. Ka3 {[%clk 0:02:03.9]} 41... Re3
{[%clk 0:00:42.1]} 42. Ka4 {[%clk 0:01:59.9]} 42... f5 {[%clk 0:00:41.9]} 43.
Kb5 {[%clk 0:01:58.1]} 43... f4 {[%clk 0:00:42.1]} 44. b4 {[%clk 0:01:47.8]}
44... cxb4 {[%clk 0:00:39.9]} 45. Bd4 {[%clk 0:01:48.2]} 45... Re4 {[%clk
0:00:37.7]} 46. Bb6 {[%clk 0:01:45.7]} 46... b3 {[%clk 0:00:35.4]} 47. Rd2
{[%clk 0:01:45.9]} 47... b2 {[%clk 0:00:35.7]} 48. Rd1 {[%clk 0:01:45.7]} 48...
Nc1 {[%clk 0:00:33.6]} 49. c5 {[%clk 0:01:43.5]} 49... b1=Q+ {[%clk 0:00:33.6]}
50. Kc6 {[%clk 0:01:44.4]} 50... Qc2 {[%clk 0:00:30.3]} 51. Rd6+ {[%clk
0:01:44.6]} 51... Kf5 {[%clk 0:00:29.8]} 52. Kb7 {[%clk 0:01:43.7]} 52... Nb3
{[%clk 0:00:25.2]} 53. c6 {[%clk 0:01:36.8]} 53... Nc5+ {[%clk 0:00:25.1]} 54.
Kc8 {[%clk 0:01:30.8]} 54... Ne6 {[%clk 0:00:24.7]} 55. h3 {[%clk 0:01:26.1]}
55... Re5 {[%clk 0:00:19.5]} 56. Kd7 {[%clk 0:01:21.6]} 56... f3 {[%clk
0:00:19.3]} 57. Ke7 {[%clk 0:01:13]} 57... f2 {[%clk 0:00:19.1]} 58. Bxf2 {[%clk
0:01:11.3]} 58... Qxf2 {[%clk 0:00:20]} 59. c7 {[%clk 0:01:11.4]} 59... Rc5
{[%clk 0:00:19.2]} 60. c8=Q {[%clk 0:01:06.3]} 60... Rxc8 {[%clk 0:00:18.6]} 61.
h4 {[%clk 0:01:06.9]} 61... Qa7+ {[%clk 0:00:16.3]} 62. Rd7 {[%clk 0:01:06.4]}
62... Rc7 {[%clk 0:00:16.9]} 63. Kd6 {[%clk 0:01:02.7]} 63... Rxd7+ {[%clk
0:00:16.9]} 64. Kc6 {[%clk 0:01:03.2]} 64... Qb7# {[%clk 0:00:17.4]} 0-1

[Event "*** Titled Tuesday Blitz"]
[Site "Chess.com"]
[Date "2020.04.21"]
[Round "2"]
[White "Twitch_ElhamBlitz05"]
[Black "Salem-AR"]
[Result "0-1"]
[WhiteElo "2606"]
[BlackElo "2996"]
[TimeControl "180+1"]
[EndTime "10:17:44 PDT"]
[Termination "Salem-AR won by resignation"]

1. e4 {[%clk 0:03:00.8]} 1... c5 {[%clk 0:02:59.5]} 2. Ne2 {[%clk 0:03:00.7]}
2... d6 {[%clk 0:02:58.5]} 3. d4 {[%clk 0:03:01]} 3... cxd4 {[%clk 0:02:58.7]}
4. Nxd4 {[%clk 0:03:01.9]} 4... Nf6 {[%clk 0:02:59.2]} 5. f3 {[%clk 0:03:01.6]}
5... e6 {[%clk 0:02:53.9]} 6. c4 {[%clk 0:03:01.2]} 6... Be7 {[%clk 0:02:52.4]}
7. Nc3 {[%clk 0:03:01.3]} 7... O-O {[%clk 0:02:52.8]} 8. Be3 {[%clk 0:03:00.8]}
8... b6 {[%clk 0:02:52.5]} 9. Be2 {[%clk 0:03:00.5]} 9... Bb7 {[%clk 0:02:53]}
10. O-O {[%clk 0:03:01.2]} 10... a6 {[%clk 0:02:53.4]} 11. Qd2 {[%clk
0:03:01.6]} 11... Nbd7 {[%clk 0:02:53.8]} 12. Rfd1 {[%clk 0:03:01.3]} 12... Rc8
{[%clk 0:02:52.1]} 13. Rac1 {[%clk 0:03:01.3]} 13... Qc7 {[%clk 0:02:52.1]} 14.
b3 {[%clk 0:03:00.2]} 14... Rfe8 {[%clk 0:02:51.4]} 15. Qe1 {[%clk 0:02:52.5]}
15... Qb8 {[%clk 0:02:50.5]} 16. Qf2 {[%clk 0:02:52.6]} 16... Bd8 {[%clk
0:02:50.4]} 17. a3 {[%clk 0:02:49.9]} 17... Bc7 {[%clk 0:02:49.4]} 18. g3 {[%clk
0:02:43.9]} 18... h6 {[%clk 0:02:39.3]} 19. b4 {[%clk 0:02:40.8]} 19... Qa8
{[%clk 0:02:32]} 20. Rb1 {[%clk 0:02:20.7]} 20... d5 {[%clk 0:02:23.9]} 21. exd5
{[%clk 0:02:10.1]} 21... exd5 {[%clk 0:02:24.1]} 22. Nxd5 {[%clk 0:02:04.8]}
22... Nxd5 {[%clk 0:02:13.5]} 23. cxd5 {[%clk 0:02:04.8]} 23... Bxd5 {[%clk
0:02:14.4]} 24. b5 {[%clk 0:01:45.2]} 24... Bd6 {[%clk 0:01:11.5]} 25. Nf5
{[%clk 0:01:17.8]} 25... Bf8 {[%clk 0:00:49.3]} 26. bxa6 {[%clk 0:01:10]} 26...
Rc2 {[%clk 0:00:48.6]} 27. Rd2 {[%clk 0:00:42.6]} 27... Rxd2 {[%clk 0:00:37.7]}
28. Bxd2 {[%clk 0:00:43.5]} 28... Bc5 {[%clk 0:00:37.8]} 29. Be3 {[%clk
0:00:43.7]} 29... Rxe3 {[%clk 0:00:38.4]} 30. Nxe3 {[%clk 0:00:44.6]} 30... Qe8
{[%clk 0:00:38.7]} 31. Nxd5 {[%clk 0:00:25.7]} 31... Qxe2 {[%clk 0:00:27.3]} 32.
Qxc5 {[%clk 0:00:26.2]} 32... Nxc5 {[%clk 0:00:27.8]} 33. Rxb6 {[%clk
0:00:12.1]} 33... Nxa6 {[%clk 0:00:21]} 34. Rb8+ {[%clk 0:00:02.8]} 34... Nxb8
{[%clk 0:00:20.9]} 35. Nf4 {[%clk 0:00:03.7]} 35... Qxf3 {[%clk 0:00:20.6]} 0-1

[Event "*** Titled Tuesday Blitz"]
[Site "Chess.com"]
[Date "2020.04.21"]
[Round "2"]
[White "Dynamikus"]
[Black "thedjoker98"]
[Result "1-0"]
[WhiteElo "2722"]
[BlackElo "2505"]
[TimeControl "180+1"]
[EndTime "10:17:44 PDT"]
[Termination "Dynamikus won by resignation"]

1. e4 {[%clk 0:03:00.9]} 1... e5 {[%clk 0:02:53.1]} 2. f4 {[%clk 0:03:00.6]}
2... exf4 {[%clk 0:02:52.9]} 3. Bc4 {[%clk 0:03:00.7]} 3... c6 {[%clk
0:02:50.4]} 4. Nc3 {[%clk 0:03:00.3]} 4... Nf6 {[%clk 0:02:50.4]} 5. d4 {[%clk
0:02:39.8]} 5... Bb4 {[%clk 0:02:48.7]} 6. Bd3 {[%clk 0:02:30.8]} 6... d5 {[%clk
0:02:45.5]} 7. e5 {[%clk 0:01:39.2]} 7... Ne4 {[%clk 0:02:43.8]} 8. Nf3 {[%clk
0:01:37.3]} 8... Nxc3 {[%clk 0:02:39.1]} 9. bxc3 {[%clk 0:01:38.2]} 9... Bxc3+
{[%clk 0:02:40]} 10. Bd2 {[%clk 0:01:38.5]} 10... Bxa1 {[%clk 0:02:40.1]} 11.
Qxa1 {[%clk 0:01:39.4]} 11... c5 {[%clk 0:02:14.8]} 12. dxc5 {[%clk 0:01:25.7]}
12... Nc6 {[%clk 0:02:11.4]} 13. O-O {[%clk 0:01:25.4]} 13... Qe7 {[%clk
0:02:08]} 14. Bxf4 {[%clk 0:01:22.7]} 14... Qxc5+ {[%clk 0:02:06.3]} 15. Kh1
{[%clk 0:01:22.6]} 15... Be6 {[%clk 0:02:06.2]} 16. Rb1 {[%clk 0:01:11.5]} 16...
Nb4 {[%clk 0:01:50.7]} 17. Be3 {[%clk 0:00:51.6]} 17... Qxe3 {[%clk 0:01:44.7]}
18. Rxb4 {[%clk 0:00:51.5]} 18... O-O {[%clk 0:01:42.7]} 19. Rb3 {[%clk
0:00:32.6]} 19... Qc5 {[%clk 0:01:38.4]} 20. Qe1 {[%clk 0:00:32]} 20... h6
{[%clk 0:01:19.6]} 21. Rb4 {[%clk 0:00:27.2]} 21... Rac8 {[%clk 0:01:09.4]} 22.
Rh4 {[%clk 0:00:27]} 22... f6 {[%clk 0:00:56.2]} 23. Qg3 {[%clk 0:00:20.3]}
23... Qe3 {[%clk 0:00:45.3]} 24. Qg6 {[%clk 0:00:18.9]} 24... Rc6 {[%clk
0:00:27.4]} 25. Qh7+ {[%clk 0:00:18.4]} 25... Kf7 {[%clk 0:00:22]} 26. Bg6+
{[%clk 0:00:19.3]} 26... Ke7 {[%clk 0:00:21.6]} 27. Qxg7+ {[%clk 0:00:20.2]}
27... Bf7 {[%clk 0:00:20.6]} 28. h3 {[%clk 0:00:05]} 28... fxe5 {[%clk
0:00:06.1]} 29. Nxe5 {[%clk 0:00:05.9]} 29... Qe1+ {[%clk 0:00:05.7]} 30. Kh2
{[%clk 0:00:06.5]} 30... Qxh4 {[%clk 0:00:06]} 31. Bxf7 {[%clk 0:00:07.2]} 31...
Qf4+ {[%clk 0:00:05]} 32. Kh1 {[%clk 0:00:05.9]} 32... Rxf7 {[%clk 0:00:05.4]}
33. Ng6+ {[%clk 0:00:05.5]} 33... Kd8 {[%clk 0:00:04.4]} 34. Qg8+ {[%clk
0:00:05.2]} 34... Rf8 {[%clk 0:00:04.8]} 35. Nxf8 {[%clk 0:00:04.9]} 35... Qxf8
{[%clk 0:00:05.7]} 36. Qxf8+ {[%clk 0:00:05]} 1-0